Cogmind - Beta 13 @@@ ROGUE MODE // 2024.04.20 @ 20:44:42 Player: Rizzen Result: Destroyed by Y-45 Defender with Heavy Assault Rifle Performance ------------- Evolutions (1) 500 Regions Visited (2) 400 Robots Destroyed (50) 250 Value Destroyed (1170) 1170 Prototype IDs (2) 40 Alien Tech Used (0) 0 Bonus (195) 195 TOTAL SCORE: 2555 Bonus ------- High Alert Combat Kills 195 Cogmind --------- Core Integrity 0/400 Matter 280/300 Energy 99/100 System Corruption 0% Temperature Cool (0) Movement Core (50) Location -9/Materials Parts ------- > --- POWER (1) -------- (None) > --- PROPULSION (3) --- (None) > --- UTILITY (3) ------ (None) > --- WEAPON (2) ------- (None) > --- INVENTORY (5) ---- ECM Suite Beam Rifle Particle Gun Beam Cannon Mining Claw Peak State ------------ > --- POWER ------------ Light Ion Engine > --- PROPULSION ------- Hover Unit Improved Hover Unit Flight Unit > --- UTILITY ---------- Heat Sink Sensor Array Targeting Computer > --- WEAPON ----------- Beam Rifle Beam Cannon > --- INVENTORY -------- Flight Unit ECM Suite Beam Rifle Beam Rifle Mining Claw [Rating: 11] Favorites ----------- Power Light Ion Engine Engine Light Ion Engine Propulsion Wheel Wheel Wheel Hover Unit Hover Unit Flight Unit Flight Unit Utility Targeting Computer Device Heat Sink Storage Small Storage Unit Processor Targeting Computer Protection Light Armor Plating Weapon Beam Cannon Energy Gun Beam Rifle Energy Cannon Beam Cannon Ballistic Gun Light Assault Rifle Build | -11 -10 -9 ------- Run | Yrd Mat Mat Slots Evolved 2 | . . 2 Power . | . . . Propulsion 1 | . . 1 Utility 1 | . . 1 Weapon . | . . . Parts Attached 45 | 8 12 25 Power 9 | 1 2 6 Engine 9 | 1 2 6 Core . | . . . Reactor . | . . . Propulsion 15 | 3 3 9 Treads . | . . . Leg . | . . . Wheel 4 | 3 1 . Hover 6 | . 2 4 Flight 5 | . . 5 Utility 11 | 2 2 7 Device 7 | 1 1 5 Storage 1 | 1 . . Processor 2 | . 1 1 Hackware . | . . . Protection 1 | . . 1 Artifact . | . . . Weapon 10 | 2 5 3 Energy Gun 6 | 1 2 3 Energy Cannon 2 | . 2 . Ballistic Gun 2 | 1 1 . Ballistic Cannon . | . . . Launcher . | . . . Special Weapon . | . . . Impact Weapon . | . . . Slashing Weapon . | . . . Piercing Weapon . | . . . Special Melee Weapon . | . . . Unidentified Prototypes . | . . . Parts Lost 12 | . . 12 Power 1 | . . 1 Propulsion 5 | . . 5 Utility 3 | . . 3 Weapon 3 | . . 3 Highest Loss Streak 4 | . . 4 To Critical Strikes . | . . . Average Slot Usage (%) 88 | . 99 74 Engine 12 | . 14 10 Wheel 11 | . 20 . Hover 8 | . 7 8 Flight 3 | . . 8 Device 11 | . 8 15 Storage 4 | . 8 . Processor 11 | . 11 11 Energy Gun 12 | . 13 11 Energy Cannon 10 | . 11 8 Ballistic Gun 1 | . 3 . Naked Turns 18 | . . 18 Heaviest Build 16 | 11 14 16 Greatest Support 26 | 26 20 18 Greatest Overweight (x) 3 | . . 3 Average Overweight (x) . | . . . Largest Inventory Capacity 8 | 8 8 5 Average Capacity 6 | 7 6 5 Most Carried 8 | 6 8 5 Average Carried 4 | 3 5 3 Final Capacity 8 | 8 5 5 Final Carried 5 | 3 5 5 Class Distribution -------------------- 85% | Mutant 14% | Scavenger-Mutant Dominant Class ---------------- Mutant | -10/Materials Mutant | -9/Materials Resources | -11 -10 -9 ----------- Run | Yrd Mat Mat Matter Collected 677 | 284 155 238 Remotely . | . . . Salvage Created 1757 | 106 605 1046 Parts 93 | 5 34 54 Haulers Intercepted 4 | . 2 2 Recyclers Shooed . | . . . Parts Field Recycled . | . . . Retrieved Matter . | . . . Parts Self-Destructed . | . . . Prevented . | . . . Kills | -11 -10 -9 ------- Run | Yrd Mat Mat Combat Hostiles Destroyed 36 | . 13 23 Guns 12 | . 6 6 Cannons 22 | . 7 15 Classes Destroyed 10 | 2 4 4 Worker 1 | . . 1 Builder 1 | . . 1 Tunneler 2 | 2 . . Hauler 4 | . 2 2 Recycler 2 | 1 . 1 Watcher 4 | . 3 1 Swarmer 11 | . 3 8 Grunt 22 | . 10 12 Brawler 1 | . . 1 Sentry 2 | . . 2 Best Kill Streak 7 | 2 4 7 Combat Bots Only 6 | . 4 6 Max Kills in Single Turn 1 | 1 1 1 Gunslinging . | . . . Exploded . | . . . Melee . | . . . Uniques/NPCs Destroyed . | . . . Combat | -11 -10 -9 -------- Run | Yrd Mat Mat Hostile Shots Fired 191 | . 47 144 Missed 62 | . 13 49 Damage Taken 1597 | . 368 1229 Core 493 | . 83 410 Absorbed by Shields . | . . . Core Remaining (%) 83 | 100 66 . Volleys Fired 126 | 4 43 79 Largest 2 | 2 2 2 Hottest 125 | 60 125 120 Shots Fired 249 | 8 86 155 Gun 135 | 8 55 72 Cannon 114 | . 31 83 Launcher . | . . . Special . | . . . Kinetic 24 | 4 20 . Thermal 225 | 4 66 155 Explosive . | . . . Electromagnetic . | . . . Robot Hit Streak 25 | 6 11 25 Robot Miss Streak 4 | . 3 4 Penetration Max . | . . . Secondary Targets . | . . . Shots Hit Robots 176 | 6 60 110 Core Hits 65 | 4 26 35 Critical Kills . | . . . Critical Parts Destroyed . | . . . Critical Strikes 7 | . 1 6 Burn 7 | . 1 6 Melee Attacks . | . . . Impact . | . . . Slashing . | . . . Piercing . | . . . Sneak Attacks . | . . . Combat Hostiles . | . . . Follow-up Attacks . | . . . Damage Inflicted 2668 | 59 806 1803 Guns 1368 | 59 488 821 Cannons 1300 | . 318 982 Explosions . | . . . Melee . | . . . Ramming . | . . . Kinetic 133 | 13 120 . Thermal 2535 | 46 686 1803 Explosive . | . . . Electromagnetic . | . . . Impact . | . . . Slashing . | . . . Piercing . | . . . Highest Corruption 2 | . 2 . Average Corruption 2 | . 2 . Corruption Purged . | . . . Corruption Blocked . | . . . Effects 14 | . 14 . Message Errors 6 | . 6 . Matter Fused 2 | . 2 . Heat Flow Errors 3 | . 3 . Data Loss (minor) 2 | . 2 . Alerts 1 | . 1 . Overload Shots . | . . . Overflow Damage 21 | . . 21 Projectiles 21 | . . 21 Explosions . | . . . Melee . | . . . Knockbacks . | . . . Impact . | . . . Kinetic . | . . . Secondary . | . . . Self-Inflicted Damage 114 | . . 114 Shots 1 | . . 1 Rammed . | . . . Targets Rammed . | . . . Kicked . | . . . Crushed . | . . . Highest Temperature 454 | 20 345 454 Average Temperature 105 | 15 98 112 Received Heat Transfer 615 | . 177 438 Effects 4 | . . 4 Shutdowns 1 | . . 1 Energy Bleed 1 | . . 1 Matter Decay 1 | . . 1 Damage (minor) 1 | . . 1 Siege Activations . | . . . Robots Corrupted . | . . . Combat Hostiles . | . . . Parts Fried . | . . . Impact Corruptions . | . . . Robots Melted 2 | . . 2 Combat Hostiles 2 | . . 2 Parts Melted 14 | 1 2 11 Heat Transferred 6260 | 100 1572 4588 Parts Sabotaged . | . . . Parts Stolen . | . . . Parts Stripped . | . . . Power Chain Reactions . | . . . Alert | -11 -10 -9 ------- Run | Yrd Mat Mat Peak Influence 943 | 15 250 943 Initial 42 | . 9 42 Average 326 | 6 114 633 Maximum Alert Level 3 | . 1 3 Low Security (%) 58 | 100 93 9 Level 1 7 | . 6 10 Level 2 6 | . . 16 Level 3 26 | . . 63 Level 4 . | . . . Level 5 . | . . . High Security . | . . . Max Security . | . . . Squads Dispatched 5 | . 3 2 Investigation 4 | . 3 1 Extermination . | . . . Reinforcement 1 | . . 1 Assault . | . . . Garrison . | . . . Intercept . | . . . Searches Triggered . | . . . Construction Impeded . | . . . Haulers Reinforced . | . . . Active Scanning Responses . | . . . Cargo Convoy Interrupts . | . . . Stealth | -11 -10 -9 --------- Run | Yrd Mat Mat Distress Signals 2 | . . 2 Communications Jammed . | . . . Distress Signals . | . . . Times Spotted 54 | . 16 38 Peak Tracking Total 13 | . 3 13 Tactical Retreats 5 | . . 5 Traps | -11 -10 -9 ------- Run | Yrd Mat Mat Traps Triggered 7 | . 3 4 Indirectly . | . . . Trap Hack Attempts . | . . . Triggered . | . . . Disarmed . | . . . Reprogrammed . | . . . Reused . | . . . Traps Extracted . | . . . Installed . | . . . Triggered . | . . . Machines | -11 -10 -9 ---------- Run | Yrd Mat Mat Machines Disabled 3 | . . 3 Max in Single Turn 1 | . . 1 Machines Repaired . | . . . Machines Dismantled . | . . . Machines Sabotaged . | . . . Overloaded Fab Kills . | . . . Hacking | -11 -10 -9 --------- Run | Yrd Mat Mat Machines Accessed 12 | . 10 2 Terminals 10 | . 8 2 Fabricators . | . . . Repair Stations 1 | . 1 . Recycling Units 1 | . 1 . Scanalyzers . | . . . Garrison Access . | . . . Total Hacks 27 | . 22 5 Successful 16 | . 14 2 Failed 11 | . 8 3 Catastrophic . | . . . Database Lockouts . | . . . Manual 17 | . 12 5 Terminals 23 | . 18 5 Fabricators . | . . . Repair Stations 3 | . 3 . Recycling Units 1 | . 1 . Scanalyzers . | . . . Garrison Access . | . . . Terminal Hacks 4 | . 4 . Robot Analysis 1 | . 1 . Prototype ID Bank 1 | . 1 . Emergency Access Points 1 | . 1 . Locate Traps 1 | . 1 . Fabricator Hacks . | . . . Repair Station Hacks 1 | . 1 . Scan Component 1 | . 1 . Recycling Unit Hacks 1 | . 1 . Report Inventory 1 | . 1 . Scanalyzer . | . . . Garrison Access Hacks . | . . . Unauthorized Hacks 10 | . 8 2 Terminals 10 | . 8 2 Botnet 10 | . 8 2 Fabricators . | . . . Repair Stations . | . . . Recycling Units . | . . . Scanalyzers . | . . . Garrison Access . | . . . Data Cores Recovered . | . . . Used . | . . . Hacking Detections 7 | . 6 1 Full Trace Events 4 | . 3 1 Feedback Events . | . . . Feedback Blocked . | . . . Robot Schematics Acquired . | . . . Robots Built . | . . . Authchips . | . . . Time . | . . . Total Robot Build Rating . | . . . Part Schematics Acquired . | . . . Parts Built . | . . . Authchips . | . . . Time . | . . . Total Part Build Rating . | . . . Parts Repaired . | . . . Time . | . . . Parts Recycled . | . . . Recycled Matter . | . . . Retrieved Matter . | . . . Retrieved Components . | . . . Parts Scanalyzed . | . . . Part Schematics Acquired . | . . . Parts Damaged . | . . . Bothacking | -11 -10 -9 ------------ Run | Yrd Mat Mat Used RIF Installer . | . . . Robots Hacked . | . . . Non-combat . | . . . Combat . | . . . Robot Hacks Applied . | . . . Relay Couplers Released . | . . . Fabnet Peak Effective % . | . . . Robots Rewired . | . . . Allies Hacked . | . . . Hacks Repelled . | . . . Allies | -11 -10 -9 -------- Run | Yrd Mat Mat Total Allies . | . . . Largest Group . | . . . Highest-Rated Group . | . . . Highest-Rated Ally . | . . . Total Orders . | . . . Ally Attacks . | . . . Total Damage . | . . . Kills . | . . . Allies Corrupted . | . . . Allies Melted . | . . . Intel | -11 -10 -9 ------- Run | Yrd Mat Mat Robot Analysis Total 1 | . 1 . Derelict Logs Recovered . | . . . Drone Launches . | . . . Drone Recoveries . | . . . Exploration | -11 -10 -9 ------------- Run | Yrd Mat Mat Turns Passed 1588 | 80 844 664 Spaces Moved 1377 | 58 911 408 Core 88 | 3 . 85 Treads . | . . . Legs . | . . . Wheels 602 | 55 547 . Hover 556 | . 364 192 Flight 131 | . . 131 Fastest Speed 34 | 50 56 34 Average Speed 73 | 84 70 79 Slowest Speed 200 | 100 80 200 Overloaded Moves . | . . . Propulsion Burnouts . | . . . Robots Hopped 2 | . . 2 Cave-ins Triggered . | . . . Exploration Rate (%) 43 | 4 100 27 Regions Visited 2 Branch Regions . Pre-discovered Areas . | . . . Known Exits Taken . | . . . Unknown Exits Taken 2 | 1 1 . Scrap Searched . | . . . Spaces Dug . | . . . Terrain Destroyed 32 | . . 32 Melee . | . . . Projectile . | . . . AOE 32 | . . 32 Terrain Rammed . | . . . Walls Destroyed . | . . . Machines Disabled . | . . . Actions | -11 -10 -9 --------- Run | Yrd Mat Mat Total 1709 | 81 1034 594 Wait 86 | . 38 48 Move 1371 | 57 910 404 Hop 2 | . . 2 Pick Up 46 | 10 16 20 Fast Attach 8 | 2 1 5 Attach 24 | 5 4 15 Detach 1 | . . 1 Swap 13 | 1 7 5 Drop 32 | 2 15 15 Fire 126 | 4 43 79 Melee . | . . . Ram . | . . . Kick . | . . . Crush . | . . . Escape Stasis . | . . . Rewire . | . . . Trap . | . . . Miscellaneous . | . . . Route ------- -11/Scrapyard -10/Materials (discovered 5 exits: *Mat x3 / [*Min] / [*Sub]) -9/Materials (discovered 1 exit: [*Mat]) History --------- Turn | Location | Event 12 | -11/Scrapyard | Discovered new exit (range 15) 81 | -11/Scrapyard | Entered Materials 264 | -10/Materials | Discovered new exit (range 4) 302 | -10/Materials | Build established: Mutant 385 | -10/Materials | Discovered new exit (range 16) 523 | -10/Materials | Discovered new exit (range 8) 759 | -10/Materials | Discovered new exit (range 9) 885 | -10/Materials | Discovered new exit (range 10) 925 | -10/Materials | Entered another Materials area 925 | -9/Materials | Evolved 2 slots: Propulsion x1, Utility x1 1253 | -9/Materials | Core integrity fell below 50% 1267 | -9/Materials | Lost 4 parts (2n1u1w) 1542 | -9/Materials | Core integrity fell below 20% 1588 | -9/Materials | Discovered new exit (range 16) 1589 | -9/Materials | Destroyed by Y-45 Defender with Heavy Assault Rifle Last Messages --------------- 01563_ Massive razor-sharp blades shoot up from within the floor. 01563_ Beam Rifle severed. 01563_ Lgt. Ion Engine severed. 01563_ Sensor Array severed. 01565_ Acquired Lgt. Ion Engine. 01567_ Acquired Beam Rifle. 01569_ Acquired Sensor Array. 01570_ Triggered Blade Trap. 01570_ Massive razor-sharp blades shoot up from within the floor. 01570_ Targeting Computer severed. 01570_ Lgt. Ion Engine severed. 01571_ Triggered Blade Trap. 01571_ Massive razor-sharp blades shoot up from within the floor. 01571_ Sensor Array severed. 01571_ Signal Interpreter severed. 01588_ Critical hit (Burn: +37). 01588_ EXIT=FOUND Map ----- +----------------------------------------------------+ | | | | | | | | | | | | | | | | | | | | | | | ?????????????????????????????????????????????????? | | ?????????????????????????????????????????????????? | | ?????????????????????????????????????????????????? | | ?????????????????????????????????????????????????? | | ?????????????????????????????????????????######### | | ???????????????????????????????########??# # | | ???????????????????????????????# #??# # | | ???????????????????????????????# """ #### # | | ???????????????????????????????#= """ # !* # | | ???????????????????????????????# """ # ######## # | | ???????????????????????????????# # ######## # | | ???????????????????????????????# # # # | | ???????????????????????????????####+### # """### | | ?????????????????####+############ ## # Y"#?? | | ??????????# @ YYr """#?? | | ??????????# < ######### ## # #?? | | ??????????# ????????###### # ] #?? | | ???????????########### ??????????????# ########?? | | ?????????????????????# ??????????????# #????????? | | ?????????????????????# ???????????????# #????????? | | ?????????????????????# ???????????????# #????????? | | ?????????????????????#???????????????? ????????? | | ?????????????????????????????????????? ????##+## | | ?????????????????????????????????????? | | ?????????????????????????????????????? ????##### | | ?????????????????????????????????????? ???# #### | | ??????????????????????????????????????#+#??# | | ???????????????????????????????????????????# """ | | ????????????????????????????????????????????? """ | | ???????????????????????????????????????????# ""? | | ???????????????????????????????????????????# | | ?????????????????????????????????????????????? """ | | ?????????????????????????????????????????????? """ | | ?????????????????????????????????????????????????? | | ?????????????????????????????????????????????????? | | ?????????????????????????????????????????????????? | | ?????????????????????????????????????????????????? | | ?????????????????????????????????????????????????? | | ?????????????????????????????????????????????????? | +----------------------------------------------------+ Best States ------------- Heat Dissipation 38 Energy Generation 12 Energy Capacity 265 Matter Stores 300 Matter Capacity 300 Sight Range 16 Robot Scan Range 14 Terrain Scan Density 10 ECM Strength 1 Armor Coverage 150 Evasion (%) 63 Targeting Accuracy 5 Item Schematics ----------------- None Robot Schematics ------------------ None Fabricated ------------ Nothing Alien Tech Used ----------------- None Achievements -------------- None Challenges ------------ None Game ------ Seed OmegaDecoderBuckler Manual? 0 Play Time 00:32:17 Cumulative 36.1 hours Start 2024.04.20 @ 19:54:35 End 2024.04.20 @ 20:44:42 Sessions 1 Manual Loads 0 Difficulty Rogue Special Mode None Game No. 24 Rogue 24 Adventurer 0 Explorer 0 Win Type - Total 0 Types 0/0/0/0/0/0/0/0/0 Lore% 16 Gallery% 33 Achievement% 28 Wizard Run 0 Options --------- Layout 1 ASCII 0 Keyboard 0 Movement Mouse Keybinds 0 Fullscreen 1 Font 32/SmallcapsGlow Map View 50x35 Zoom Use 0% Tactical HUD 1 Map Filters NONE Filters NONE Steam 0 RUN: b8134ed1-90ad-43cc-b026-119986b677f3